[Event "Titled Tuesday Blitz June 28 Late 2022"]
[White "Golubev, Mikhail"]
[Black "Yuan, Qingyu"]
[WhiteFideId "14100983"]
[BlackFideId "8609772"]
[WhiteElo "2374"]
[BlackElo "2359"]
[Result "0-1"]
[Round "04"]
[TimeControl "180+1"]
[Date "2022.06.28"]
[WhiteClock "0:00:03"]
[BlackClock "0:00:48"]

1. e4 {[%clk 0:03:00]}  c6 {[%clk 0:03:00]} 2. d4 {[%clk 0:02:57]}  d5 {[%clk 0:03:00]} 3. e5 {[%clk 0:02:57]}  c5 {[%clk 0:03:00]} 4. dxc5 {[%clk 0:02:56]}  e6 {[%clk 0:03:01]} 5. Nf3 {[%clk 0:02:54]}  Bxc5 {[%clk 0:03:00]} 6. Bd3 {[%clk 0:02:54]}  f6 {[%clk 0:02:58]} 7. O-O {[%clk 0:02:50]}  Nc6 {[%clk 0:02:54]} 8. Bf4 {[%clk 0:02:43]}  g5 {[%clk 0:02:38]} 9. Bg3 {[%clk 0:02:21]}  f5 {[%clk 0:02:33]} 10. h4 {[%clk 0:01:42]}  f4 {[%clk 0:02:18]} 11. Bh2 {[%clk 0:01:20]}  g4 {[%clk 0:02:18]} 12. Ng5 {[%clk 0:01:13]}  g3 {[%clk 0:02:18]} 13. Qh5+ {[%clk 0:01:13]}  Kd7 {[%clk 0:02:17]} 14. Nc3 {[%clk 0:00:25]}  Qe8 {[%clk 0:02:02]} 15. Qg4 {[%clk 0:00:12]}  gxh2+ {[%clk 0:02:02]} 16. Kh1 {[%clk 0:00:12]}  Nh6 {[%clk 0:01:52]} 17. Qxf4 {[%clk 0:00:10]}  Rf8 {[%clk 0:01:49]} 18. Qa4 {[%clk 0:00:09]}  Qh5 {[%clk 0:01:34]} 19. Nxh7 {[%clk 0:00:07]}  Kc7 {[%clk 0:01:09]} 20. Nxf8 {[%clk 0:00:07]}  Bxf8 {[%clk 0:01:10]} 21. Be2 {[%clk 0:00:06]}  Qg6 {[%clk 0:01:07]} 22. Nb5+ {[%clk 0:00:05]}  Kb8 {[%clk 0:01:05]} 23. Nd6 {[%clk 0:00:06]}  Nxe5 {[%clk 0:00:53]} 24. Qe8 {[%clk 0:00:03]}  Bxd6 {[%clk 0:00:48]} 0-1


[Site "https://www.chess.com"]

[Event "Titled Tuesday Blitz June 28 Late 2022"]
[White "Hoffmann, Asa"]
[Black "Colivet Gamboa, Julio Cesar"]
[WhiteFideId "2001470"]
[BlackFideId "3949583"]
[WhiteElo "2117"]
[BlackElo "1743"]
[Result "0-1"]
[Round "04"]
[TimeControl "180+1"]
[Date "2022.06.29"]
[WhiteClock "0:00:02"]
[BlackClock "0:00:17"]

1. d4 {[%clk 0:02:55]}  Nf6 {[%clk 0:02:58]} 2. Bg5 {[%clk 0:02:51]}  c5 {[%clk 0:02:57]} 3. d5 {[%clk 0:02:51]}  Qb6 {[%clk 0:02:46]} 4. Nc3 {[%clk 0:02:50]}  d6 {[%clk 0:02:46]} 5. e4 {[%clk 0:02:49]}  Nbd7 {[%clk 0:02:45]} 6. Rb1 {[%clk 0:02:47]}  g6 {[%clk 0:02:42]} 7. Qd2 {[%clk 0:02:45]}  Bg7 {[%clk 0:02:41]} 8. Nf3 {[%clk 0:02:44]}  a6 {[%clk 0:02:34]} 9. h3 {[%clk 0:02:37]}  Qa5 {[%clk 0:02:30]} 10. a3 {[%clk 0:02:33]}  b5 {[%clk 0:02:26]} 11. Bd3 {[%clk 0:02:22]}  Rb8 {[%clk 0:02:21]} 12. O-O {[%clk 0:02:20]}  O-O {[%clk 0:02:12]} 13. Rfe1 {[%clk 0:02:20]}  b4 {[%clk 0:02:07]} 14. axb4 {[%clk 0:02:19]}  Rxb4 {[%clk 0:02:05]} 15. Bh6 {[%clk 0:02:15]}  c4 {[%clk 0:01:54]} 16. Bxg7 {[%clk 0:02:05]}  Kxg7 {[%clk 0:01:52]} 17. Bf1 {[%clk 0:02:04]}  Qb6 {[%clk 0:01:46]} 18. Nd1 {[%clk 0:01:52]}  Nc5 {[%clk 0:01:41]} 19. e5 {[%clk 0:01:34]}  dxe5 {[%clk 0:01:33]} 20. Nxe5 {[%clk 0:01:32]}  Nce4 {[%clk 0:01:22]} 21. Qe3 {[%clk 0:01:27]}  Qxe3 {[%clk 0:01:18]} 22. Nxe3 {[%clk 0:01:26]}  Nd2 {[%clk 0:01:14]} 23. Rbd1 {[%clk 0:01:18]}  Nxf1 {[%clk 0:01:13]} 24. Kxf1 {[%clk 0:01:16]}  Rxb2 {[%clk 0:01:13]} 25. N5xc4 {[%clk 0:01:16]}  Rb4 {[%clk 0:01:11]} 26. c3 {[%clk 0:01:15]}  Rb3 {[%clk 0:01:08]} 27. Rc1 {[%clk 0:01:03]}  Ne4 {[%clk 0:01:07]} 28. Nd1 {[%clk 0:00:55]}  Bf5 {[%clk 0:01:02]} 29. g4 {[%clk 0:00:50]}  Rc8 {[%clk 0:01:00]} 30. Nce3 {[%clk 0:00:31]}  Bd7 {[%clk 0:00:54]} 31. c4 {[%clk 0:00:29]}  Nd2+ {[%clk 0:00:48]} 32. Kg2 {[%clk 0:00:29]}  Rc5 {[%clk 0:00:35]} 33. Rc2 {[%clk 0:00:26]}  Ne4 {[%clk 0:00:32]} 34. f3 {[%clk 0:00:25]}  Nd6 {[%clk 0:00:31]} 35. Nf2 {[%clk 0:00:21]}  a5 {[%clk 0:00:27]} 36. Ne4 {[%clk 0:00:21]}  Nxe4 {[%clk 0:00:26]} 37. fxe4 {[%clk 0:00:21]}  a4 {[%clk 0:00:27]} 38. Ra2 {[%clk 0:00:18]}  a3 {[%clk 0:00:26]} 39. Nc2 {[%clk 0:00:17]}  Rxc4 {[%clk 0:00:23]} 40. Nxa3 {[%clk 0:00:15]}  Ra4 {[%clk 0:00:24]} 41. Rea1 {[%clk 0:00:14]}  Rxe4 {[%clk 0:00:22]} 42. Nc2 {[%clk 0:00:09]}  Rd3 {[%clk 0:00:20]} 43. Re1 {[%clk 0:00:07]}  Rd2+ {[%clk 0:00:17]} 44. Kf3 {[%clk 0:00:06]}  Rxe1 {[%clk 0:00:17]} 45. Ra7 {[%clk 0:00:04]}  Rxc2 {[%clk 0:00:15]} 46. Rxd7 {[%clk 0:00:03]}  Rd2 {[%clk 0:00:16]} 47. Rxe7 {[%clk 0:00:03]}  Rxe7 {[%clk 0:00:16]} 48. d6 {[%clk 0:00:02]}  Rd7 {[%clk 0:00:17]} 0-1


[Site "https://www.chess.com"]

[Event "Titled Tuesday Blitz June 28 Late 2022"]
[White "Ibarra Jerez, Jose Carlos"]
[Black "Paszewski, Mateusz"]
[WhiteFideId "2226332"]
[BlackFideId "1141058"]
[WhiteElo "2628"]
[BlackElo "2171"]
[Result "1/2-1/2"]
[Round "04"]
[TimeControl "180+1"]
[Date "2022.06.28"]
[WhiteClock "0:00:05"]
[BlackClock "0:00:09"]

1. e4 {[%clk 0:03:00]}  c6 {[%clk 0:02:58]} 2. Nf3 {[%clk 0:03:01]}  d5 {[%clk 0:02:59]} 3. d3 {[%clk 0:03:01]}  Qc7 {[%clk 0:03:00]} 4. exd5 {[%clk 0:03:01]}  cxd5 {[%clk 0:03:00]} 5. c4 {[%clk 0:03:02]}  Nf6 {[%clk 0:03:00]} 6. Nc3 {[%clk 0:03:02]}  e6 {[%clk 0:03:00]} 7. g3 {[%clk 0:03:01]}  Bb4 {[%clk 0:03:00]} 8. Bd2 {[%clk 0:02:51]}  O-O {[%clk 0:02:58]} 9. Qe2 {[%clk 0:02:49]}  dxc4 {[%clk 0:02:49]} 10. dxc4 {[%clk 0:02:49]}  b6 {[%clk 0:02:50]} 11. Bg2 {[%clk 0:02:46]}  Bb7 {[%clk 0:02:50]} 12. O-O {[%clk 0:02:46]}  Bxc3 {[%clk 0:02:35]} 13. Bxc3 {[%clk 0:02:46]}  Nbd7 {[%clk 0:02:35]} 14. b3 {[%clk 0:02:34]}  Rfd8 {[%clk 0:02:22]} 15. Rac1 {[%clk 0:02:31]}  Rac8 {[%clk 0:02:19]} 16. Rfe1 {[%clk 0:02:30]}  Bc6 {[%clk 0:02:16]} 17. Bh3 {[%clk 0:02:25]}  Qb7 {[%clk 0:02:12]} 18. Nd4 {[%clk 0:02:25]}  Be4 {[%clk 0:02:02]} 19. Nxe6 {[%clk 0:01:59]}  fxe6 {[%clk 0:01:50]} 20. Bxe6+ {[%clk 0:02:00]}  Kh8 {[%clk 0:01:50]} 21. Bxd7 {[%clk 0:01:51]}  Qxd7 {[%clk 0:01:20]} 22. Bxf6 {[%clk 0:01:46]}  Bd3 {[%clk 0:01:21]} 23. Qe5 {[%clk 0:01:15]}  gxf6 {[%clk 0:01:19]} 24. Qxf6+ {[%clk 0:01:15]}  Qg7 {[%clk 0:01:20]} 25. Qxg7+ {[%clk 0:01:12]}  Kxg7 {[%clk 0:01:19]} 26. Re7+ {[%clk 0:01:13]}  Kg6 {[%clk 0:01:19]} 27. Rxa7 {[%clk 0:01:13]}  Be4 {[%clk 0:01:19]} 28. Re7 {[%clk 0:01:09]}  Rd4 {[%clk 0:01:13]} 29. Re1 {[%clk 0:01:03]}  Ba8 {[%clk 0:00:45]} 30. h4 {[%clk 0:00:48]}  Rcd8 {[%clk 0:00:43]} 31. Kh2 {[%clk 0:00:37]}  Rd2 {[%clk 0:00:38]} 32. Kh3 {[%clk 0:00:26]}  h5 {[%clk 0:00:23]} 33. R1e6+ {[%clk 0:00:26]}  Kf5 {[%clk 0:00:22]} 34. Re5+ {[%clk 0:00:22]}  Kf6 {[%clk 0:00:19]} 35. R5e6+ {[%clk 0:00:22]}  Kf5 {[%clk 0:00:18]} 36. Re1 {[%clk 0:00:16]}  Kg6 {[%clk 0:00:06]} 37. R7e6+ {[%clk 0:00:09]}  Kf7 {[%clk 0:00:06]} 38. R6e5 {[%clk 0:00:10]}  Rxf2 {[%clk 0:00:05]} 39. Re7+ {[%clk 0:00:04]}  Kf6 {[%clk 0:00:04]} 40. R7e6+ {[%clk 0:00:04]}  Kf7 {[%clk 0:00:05]} 41. Re7+ {[%clk 0:00:05]}  Kf8 {[%clk 0:00:05]} 42. R7e2 {[%clk 0:00:03]}  Rxe2 {[%clk 0:00:02]} 43. Rxe2 {[%clk 0:00:03]}  Bb7 {[%clk 0:00:03]} 44. Re5 {[%clk 0:00:02]}  Rd2 {[%clk 0:00:03]} 45. Rxh5 {[%clk 0:00:01]}  Bc8+ {[%clk 0:00:03]} 46. g4 {[%clk 0:00:01]}  Rd3+ {[%clk 0:00:03]} 47. Kg2 {[%clk 0:00:02]}  Bxg4 {[%clk 0:00:04]} 48. Rh6 {[%clk 0:00:02]}  Bd1 {[%clk 0:00:04]} 49. Rxb6 {[%clk 0:00:01]}  Rd2+ {[%clk 0:00:04]} 50. Kg3 {[%clk 0:00:01]}  Rxa2 {[%clk 0:00:05]} 51. Kf4 {[%clk 0:00:02]}  Rb2 {[%clk 0:00:06]} 52. Kg5 {[%clk 0:00:02]}  Rxb3 {[%clk 0:00:06]} 53. Rf6+ {[%clk 0:00:02]}  Ke7 {[%clk 0:00:06]} 54. Rf1 {[%clk 0:00:03]}  Be2 {[%clk 0:00:05]} 55. Re1 {[%clk 0:00:04]}  Re3 {[%clk 0:00:05]} 56. Kf4 {[%clk 0:00:04]}  Re6 {[%clk 0:00:05]} 57. c5 {[%clk 0:00:05]}  Bb5 {[%clk 0:00:04]} 58. Rb1 {[%clk 0:00:05]}  Bc6 {[%clk 0:00:04]} 59. Rb6 {[%clk 0:00:05]}  Bd5 {[%clk 0:00:04]} 60. Rb4 {[%clk 0:00:05]}  Kf6 {[%clk 0:00:04]} 61. Rd4 {[%clk 0:00:05]}  Bc6 {[%clk 0:00:04]} 62. h5 {[%clk 0:00:05]}  Be8 {[%clk 0:00:05]} 63. h6 {[%clk 0:00:04]}  Bg6 {[%clk 0:00:05]} 64. Rd8 {[%clk 0:00:04]}  Re4+ {[%clk 0:00:05]} 65. Kf3 {[%clk 0:00:05]}  Rc4 {[%clk 0:00:05]} 66. Rd6+ {[%clk 0:00:05]}  Kg5 {[%clk 0:00:05]} 67. c6 {[%clk 0:00:05]}  Kxh6 {[%clk 0:00:05]} 68. Ke3 {[%clk 0:00:05]}  Kg5 {[%clk 0:00:05]} 69. Kd2 {[%clk 0:00:04]}  Kf5 {[%clk 0:00:05]} 70. Ke3 {[%clk 0:00:04]}  Bf7 {[%clk 0:00:04]} 71. Rd7 {[%clk 0:00:04]}  Be6 {[%clk 0:00:04]} 72. Rd6 {[%clk 0:00:04]}  Ke5 {[%clk 0:00:04]} 73. Rd8 {[%clk 0:00:04]}  Rxc6 {[%clk 0:00:05]} 74. Re8 {[%clk 0:00:04]}  Rc3+ {[%clk 0:00:05]} 75. Ke2 {[%clk 0:00:05]}  Rh3 {[%clk 0:00:06]} 76. Re7 {[%clk 0:00:04]}  Kf5 {[%clk 0:00:06]} 77. Kd2 {[%clk 0:00:04]}  Bd5 {[%clk 0:00:06]} 78. Re3 {[%clk 0:00:04]}  Rh2+ {[%clk 0:00:06]} 79. Kd3 {[%clk 0:00:05]}  Rh4 {[%clk 0:00:05]} 80. Re7 {[%clk 0:00:04]}  Ra4 {[%clk 0:00:05]} 81. Ke3 {[%clk 0:00:04]}  Be6 {[%clk 0:00:04]} 82. Re8 {[%clk 0:00:04]}  Ra3+ {[%clk 0:00:04]} 83. Ke2 {[%clk 0:00:04]}  Ke5 {[%clk 0:00:04]} 84. Re7 {[%clk 0:00:03]}  Ra4 {[%clk 0:00:04]} 85. Ke3 {[%clk 0:00:03]}  Rh4 {[%clk 0:00:05]} 86. Ke2 {[%clk 0:00:04]}  Rh3 {[%clk 0:00:05]} 87. Re8 {[%clk 0:00:04]}  Kd5 {[%clk 0:00:06]} 88. Kf2 {[%clk 0:00:04]}  Bf5 {[%clk 0:00:06]} 89. Re3 {[%clk 0:00:05]}  Rh2+ {[%clk 0:00:06]} 90. Kf3 {[%clk 0:00:05]}  Rh8 {[%clk 0:00:06]} 91. Kf4 {[%clk 0:00:05]}  Be6 {[%clk 0:00:05]} 92. Re5+ {[%clk 0:00:06]}  Kd6 {[%clk 0:00:06]} 93. Re3 {[%clk 0:00:06]}  Rf8+ {[%clk 0:00:06]} 94. Ke4 {[%clk 0:00:06]}  Ra8 {[%clk 0:00:06]} 95. Rc3 {[%clk 0:00:06]}  Ra4+ {[%clk 0:00:06]} 96. Ke3 {[%clk 0:00:06]}  Ke5 {[%clk 0:00:07]} 97. Rc7 {[%clk 0:00:06]}  Ra3+ {[%clk 0:00:07]} 98. Ke2 {[%clk 0:00:06]}  Kd4 {[%clk 0:00:07]} 99. Re7 {[%clk 0:00:06]}  Bd5 {[%clk 0:00:07]} 100. Kf2 {[%clk 0:00:06]}  Rf3+ {[%clk 0:00:07]} 101. Ke2 {[%clk 0:00:06]}  Rh3 {[%clk 0:00:07]} 102. Kf2 {[%clk 0:00:05]}  Rh2+ {[%clk 0:00:08]} 103. Kg3 {[%clk 0:00:05]}  Rg2+ {[%clk 0:00:08]} 104. Kf4 {[%clk 0:00:06]}  Rf2+ {[%clk 0:00:08]} 105. Kg5 {[%clk 0:00:06]}  Rf8 {[%clk 0:00:08]} 106. Ra7 {[%clk 0:00:06]}  Be4 {[%clk 0:00:09]} 107. Ra5 {[%clk 0:00:06]}  Bd5 {[%clk 0:00:09]} 108. Rb5 {[%clk 0:00:06]}  Ke5 {[%clk 0:00:09]} 109. Ra5 {[%clk 0:00:06]}  Rg8+ {[%clk 0:00:10]} 110. Kh5 {[%clk 0:00:07]}  Rg1 {[%clk 0:00:11]} 111. Rb5 {[%clk 0:00:07]}  Ke4 {[%clk 0:00:11]} 112. Kh6 {[%clk 0:00:07]}  Be6 {[%clk 0:00:11]} 113. Rg5 {[%clk 0:00:07]}  Rf1 {[%clk 0:00:12]} 114. Kg6 {[%clk 0:00:07]}  Bf7+ {[%clk 0:00:11]} 115. Kg7 {[%clk 0:00:07]}  Bd5 {[%clk 0:00:12]} 116. Rg4+ {[%clk 0:00:05]}  Ke5 {[%clk 0:00:11]} 117. Kg6 {[%clk 0:00:04]}  Rf8 {[%clk 0:00:11]} 118. Kg5 {[%clk 0:00:04]}  Rg8+ {[%clk 0:00:11]} 119. Kh4 {[%clk 0:00:04]}  Rh8+ {[%clk 0:00:11]} 120. Kg5 {[%clk 0:00:05]}  Be4 {[%clk 0:00:12]} 121. Rg3 {[%clk 0:00:05]}  Rf8 {[%clk 0:00:09]} 122. Kg4 {[%clk 0:00:05]}  Rg8+ {[%clk 0:00:08]} 123. Kh4 {[%clk 0:00:05]}  Rh8+ {[%clk 0:00:09]} 1/2-1/2


[Site "https://www.chess.com"]

[Event "Titled Tuesday Blitz June 28 Late 2022"]
[White "Ipek, Egehan"]
[Black "Al-Tarboush, Ward"]
[WhiteFideId "44523793"]
[BlackFideId "7601450"]
[WhiteElo "1413"]
[BlackElo "2249"]
[Result "1-0"]
[Round "04"]
[TimeControl "180+1"]
[Date "2022.06.29"]
[WhiteClock "0:00:43"]
[BlackClock "0:00:54"]

1. c4 {[%clk 0:03:00]}  c5 {[%clk 0:02:49]} 2. g3 {[%clk 0:03:00]}  Nc6 {[%clk 0:02:49]} 3. Bg2 {[%clk 0:03:00]}  g6 {[%clk 0:02:50]} 4. Nf3 {[%clk 0:03:00]}  Bg7 {[%clk 0:02:50]} 5. O-O {[%clk 0:03:01]}  Nh6 {[%clk 0:02:49]} 6. d3 {[%clk 0:03:00]}  Nf5 {[%clk 0:02:48]} 7. Nc3 {[%clk 0:02:58]}  O-O {[%clk 0:02:48]} 8. Rb1 {[%clk 0:02:58]}  a6 {[%clk 0:02:47]} 9. a3 {[%clk 0:02:57]}  Rb8 {[%clk 0:02:47]} 10. Bd2 {[%clk 0:02:56]}  b5 {[%clk 0:02:47]} 11. cxb5 {[%clk 0:02:54]}  axb5 {[%clk 0:02:48]} 12. b4 {[%clk 0:02:54]}  cxb4 {[%clk 0:02:46]} 13. axb4 {[%clk 0:02:55]}  d5 {[%clk 0:02:46]} 14. Qb3 {[%clk 0:02:33]}  d4 {[%clk 0:02:44]} 15. Ne4 {[%clk 0:02:30]}  Be6 {[%clk 0:02:44]} 16. Qb2 {[%clk 0:02:30]}  Qb6 {[%clk 0:02:39]} 17. Rfc1 {[%clk 0:02:29]}  Bd5 {[%clk 0:02:36]} 18. Nc5 {[%clk 0:02:27]}  Rfd8 {[%clk 0:02:29]} 19. Ne1 {[%clk 0:02:24]}  Bxg2 {[%clk 0:02:28]} 20. Nxg2 {[%clk 0:02:25]}  h5 {[%clk 0:02:25]} 21. h4 {[%clk 0:02:00]}  Ra8 {[%clk 0:02:22]} 22. Rc2 {[%clk 0:01:54]}  Ne5 {[%clk 0:02:19]} 23. Rbc1 {[%clk 0:01:51]}  Ng4 {[%clk 0:02:16]} 24. Ne4 {[%clk 0:01:48]}  Qe6 {[%clk 0:02:04]} 25. Nf4 {[%clk 0:01:46]}  Qa6 {[%clk 0:01:58]} 26. Rc5 {[%clk 0:01:17]}  Qa4 {[%clk 0:01:39]} 27. Nd5 {[%clk 0:01:08]}  Nd6 {[%clk 0:01:03]} 28. Nxe7+ {[%clk 0:00:57]}  Kh8 {[%clk 0:00:53]} 29. Nxd6 {[%clk 0:00:54]}  Rxd6 {[%clk 0:00:54]} 30. Rc8+ {[%clk 0:00:43]}  Rd8 {[%clk 0:00:53]} 31. Rxd8+ {[%clk 0:00:42]}  Rxd8 {[%clk 0:00:54]} 32. Ra1 {[%clk 0:00:43]} 1-0


[Site "https://www.chess.com"]

[Event "Titled Tuesday Blitz June 28 Late 2022"]
[White "Isajevsky, Anton"]
[Black "Fernandez Siles, Luis"]
[WhiteFideId "4142500"]
[BlackFideId "2209420"]
[WhiteElo "2510"]
[BlackElo "2211"]
[Result "0-1"]
[Round "04"]
[TimeControl "180+1"]
[Date "2022.06.29"]
[WhiteClock "0:00:05"]
[BlackClock "0:00:07"]

1. c4 {[%clk 0:03:00]}  Nf6 {[%clk 0:02:58]} 2. Nc3 {[%clk 0:02:59]}  g6 {[%clk 0:02:58]} 3. e4 {[%clk 0:02:59]}  d6 {[%clk 0:02:58]} 4. d4 {[%clk 0:02:59]}  Bg7 {[%clk 0:02:58]} 5. h3 {[%clk 0:03:00]}  O-O {[%clk 0:02:58]} 6. Be3 {[%clk 0:03:00]}  Nbd7 {[%clk 0:02:55]} 7. Nf3 {[%clk 0:02:59]}  e5 {[%clk 0:02:55]} 8. d5 {[%clk 0:02:59]}  Qe7 {[%clk 0:02:54]} 9. g4 {[%clk 0:02:38]}  c5 {[%clk 0:02:49]} 10. Bd3 {[%clk 0:02:35]}  Kh8 {[%clk 0:02:42]} 11. Ne2 {[%clk 0:02:29]}  a6 {[%clk 0:02:38]} 12. Ng3 {[%clk 0:02:25]}  Rb8 {[%clk 0:02:21]} 13. g5 {[%clk 0:01:54]}  Ne8 {[%clk 0:02:09]} 14. h4 {[%clk 0:01:43]}  b5 {[%clk 0:02:01]} 15. b3 {[%clk 0:01:43]}  f5 {[%clk 0:01:18]} 16. exf5 {[%clk 0:01:28]}  gxf5 {[%clk 0:01:09]} 17. Nxf5 {[%clk 0:00:31]}  Rxf5 {[%clk 0:01:07]} 18. Bxf5 {[%clk 0:00:32]}  e4 {[%clk 0:01:06]} 19. Nd2 {[%clk 0:00:31]}  Ne5 {[%clk 0:00:53]} 20. Bxc8 {[%clk 0:00:24]}  Nd3+ {[%clk 0:00:53]} 21. Ke2 {[%clk 0:00:23]}  Rxc8 {[%clk 0:00:54]} 22. Nxe4 {[%clk 0:00:22]}  Nb2 {[%clk 0:00:52]} 23. Qc2 {[%clk 0:00:21]}  bxc4 {[%clk 0:00:50]} 24. bxc4 {[%clk 0:00:20]}  Qd7 {[%clk 0:00:42]} 25. Rab1 {[%clk 0:00:16]}  Na4 {[%clk 0:00:38]} 26. f3 {[%clk 0:00:15]}  Bd4 {[%clk 0:00:30]} 27. Bxd4+ {[%clk 0:00:12]}  cxd4 {[%clk 0:00:31]} 28. Rhd1 {[%clk 0:00:08]}  Ng7 {[%clk 0:00:26]} 29. Rxd4 {[%clk 0:00:08]}  Re8 {[%clk 0:00:26]} 30. Rd3 {[%clk 0:00:04]}  Nc5 {[%clk 0:00:26]} 31. Re3 {[%clk 0:00:04]}  Qh3 {[%clk 0:00:26]} 32. Nxc5 {[%clk 0:00:03]}  Qg2+ {[%clk 0:00:20]} 33. Kd1 {[%clk 0:00:04]}  Qf1+ {[%clk 0:00:19]} 34. Kd2 {[%clk 0:00:04]}  Qf2+ {[%clk 0:00:19]} 35. Kc3 {[%clk 0:00:04]}  Rxe3+ {[%clk 0:00:18]} 36. Nd3 {[%clk 0:00:05]}  Qxf3 {[%clk 0:00:16]} 37. Rb8+ {[%clk 0:00:04]}  Ne8 {[%clk 0:00:17]} 38. Qd2 {[%clk 0:00:03]}  Qe4 {[%clk 0:00:15]} 39. Rc8 {[%clk 0:00:03]}  Kg7 {[%clk 0:00:15]} 40. Kb3 {[%clk 0:00:03]}  Kg6 {[%clk 0:00:13]} 41. Kc3 {[%clk 0:00:03]}  Ng7 {[%clk 0:00:13]} 42. Rc6 {[%clk 0:00:02]}  Nf5 {[%clk 0:00:09]} 43. h5+ {[%clk 0:00:02]}  Kxg5 {[%clk 0:00:08]} 44. Kb3 {[%clk 0:00:01]}  Qxd3+ {[%clk 0:00:06]} 45. Qxd3 {[%clk 0:00:01]}  Rxd3+ {[%clk 0:00:07]} 46. Kb4 {[%clk 0:00:02]}  Rd2 {[%clk 0:00:07]} 47. Rxa6 {[%clk 0:00:02]}  Ne3 {[%clk 0:00:06]} 48. c5 {[%clk 0:00:03]}  Rxd5 {[%clk 0:00:06]} 49. c6 {[%clk 0:00:03]}  Rc5 {[%clk 0:00:06]} 50. a4 {[%clk 0:00:02]}  Nd5+ {[%clk 0:00:07]} 51. Kb3 {[%clk 0:00:02]}  Kxh5 {[%clk 0:00:07]} 52. a5 {[%clk 0:00:02]}  Kg5 {[%clk 0:00:07]} 53. c7 {[%clk 0:00:02]}  Nxc7 {[%clk 0:00:05]} 54. Rxd6 {[%clk 0:00:03]}  Rxa5 {[%clk 0:00:05]} 55. Kb4 {[%clk 0:00:03]}  Rf5 {[%clk 0:00:05]} 56. Rd7 {[%clk 0:00:03]}  Nd5+ {[%clk 0:00:05]} 57. Kc4 {[%clk 0:00:03]}  h5 {[%clk 0:00:06]} 58. Rxd5 {[%clk 0:00:03]}  Rxd5 {[%clk 0:00:05]} 59. Kxd5 {[%clk 0:00:04]}  Kf4 {[%clk 0:00:06]} 60. Kd4 {[%clk 0:00:04]}  h4 {[%clk 0:00:06]} 61. Kd3 {[%clk 0:00:05]}  Kf3 {[%clk 0:00:07]} 62. Kd4 {[%clk 0:00:05]}  h3 {[%clk 0:00:07]} 0-1


[Site "https://www.chess.com"]

[Event "Titled Tuesday Blitz June 28 Late 2022"]
[White "Jobava, Baadur"]
[Black "Gubajdullin, Alexei"]
[WhiteFideId "13601520"]
[BlackFideId "4141202"]
[WhiteElo "2617"]
[BlackElo "2280"]
[Result "1-0"]
[Round "04"]
[TimeControl "180+1"]
[Date "2022.06.28"]
[WhiteClock "0:01:56"]
[BlackClock "0:00:05"]

1. b3 {[%clk 0:03:00]}  Nf6 {[%clk 0:02:56]} 2. Bb2 {[%clk 0:03:01]}  g6 {[%clk 0:02:56]} 3. Bxf6 {[%clk 0:03:01]}  exf6 {[%clk 0:02:55]} 4. c4 {[%clk 0:03:02]}  d5 {[%clk 0:02:55]} 5. cxd5 {[%clk 0:03:03]}  Qxd5 {[%clk 0:02:55]} 6. Nc3 {[%clk 0:03:04]}  Qa5 {[%clk 0:02:55]} 7. a3 {[%clk 0:03:05]}  c6 {[%clk 0:02:52]} 8. e3 {[%clk 0:03:05]}  Bg7 {[%clk 0:02:51]} 9. Nf3 {[%clk 0:03:04]}  O-O {[%clk 0:02:50]} 10. Be2 {[%clk 0:03:03]}  f5 {[%clk 0:02:51]} 11. b4 {[%clk 0:03:04]}  Qd8 {[%clk 0:02:49]} 12. d4 {[%clk 0:03:04]}  f4 {[%clk 0:02:47]} 13. exf4 {[%clk 0:03:03]}  a5 {[%clk 0:02:41]} 14. O-O {[%clk 0:03:00]}  axb4 {[%clk 0:02:37]} 15. axb4 {[%clk 0:03:01]}  Rxa1 {[%clk 0:02:35]} 16. Qxa1 {[%clk 0:03:02]}  Bxd4 {[%clk 0:02:29]} 17. Rd1 {[%clk 0:03:02]}  Bxc3 {[%clk 0:02:27]} 18. Qxc3 {[%clk 0:03:03]}  Qe7 {[%clk 0:02:26]} 19. Ne5 {[%clk 0:03:01]}  Rd8 {[%clk 0:02:20]} 20. g3 {[%clk 0:02:56]}  Rxd1+ {[%clk 0:02:19]} 21. Bxd1 {[%clk 0:02:57]}  Be6 {[%clk 0:02:15]} 22. Bf3 {[%clk 0:02:45]}  Nd7 {[%clk 0:02:13]} 23. Qd4 {[%clk 0:02:41]}  f6 {[%clk 0:02:01]} 24. Nd3 {[%clk 0:02:37]}  Kg7 {[%clk 0:01:57]} 25. Kg2 {[%clk 0:02:36]}  Bf5 {[%clk 0:01:53]} 26. Nc5 {[%clk 0:02:36]}  Nxc5 {[%clk 0:01:51]} 27. bxc5 {[%clk 0:02:37]}  Be6 {[%clk 0:01:49]} 28. h4 {[%clk 0:02:37]}  Qf7 {[%clk 0:01:49]} 29. Kh2 {[%clk 0:02:32]}  Bd5 {[%clk 0:01:48]} 30. Bd1 {[%clk 0:02:31]}  Qe7 {[%clk 0:01:47]} 31. Qe3 {[%clk 0:02:31]}  Qe4 {[%clk 0:01:31]} 32. Qxe4 {[%clk 0:02:32]}  Bxe4 {[%clk 0:01:31]} 33. Kg1 {[%clk 0:02:33]}  Kf7 {[%clk 0:01:28]} 34. Bb3+ {[%clk 0:02:24]}  Bd5 {[%clk 0:01:27]} 35. Bc2 {[%clk 0:02:24]}  Ke6 {[%clk 0:01:27]} 36. h5 {[%clk 0:02:23]}  f5 {[%clk 0:01:16]} 37. h6 {[%clk 0:02:24]}  Kf6 {[%clk 0:00:51]} 38. Kf1 {[%clk 0:02:17]}  Be6 {[%clk 0:00:43]} 39. Ke2 {[%clk 0:02:16]}  g5 {[%clk 0:00:43]} 40. Ke3 {[%clk 0:02:16]}  Kg6 {[%clk 0:00:43]} 41. fxg5 {[%clk 0:02:15]}  Kxg5 {[%clk 0:00:43]} 42. f4+ {[%clk 0:02:12]}  Kxh6 {[%clk 0:00:42]} 43. Kd4 {[%clk 0:02:13]}  Kg6 {[%clk 0:00:26]} 44. Ke5 {[%clk 0:02:13]}  Bc8 {[%clk 0:00:23]} 45. g4 {[%clk 0:02:13]}  h6 {[%clk 0:00:16]} 46. Bd3 {[%clk 0:02:11]}  Bd7 {[%clk 0:00:10]} 47. Kd6 {[%clk 0:01:59]}  Be8 {[%clk 0:00:10]} 48. Ke7 {[%clk 0:01:56]}  Bf7 {[%clk 0:00:09]} 49. Bxf5+ {[%clk 0:01:56]}  Kg7 {[%clk 0:00:09]} 50. Bc8 {[%clk 0:01:56]}  Bd5 {[%clk 0:00:09]} 51. f5 {[%clk 0:01:56]}  Kg8 {[%clk 0:00:06]} 52. f6 {[%clk 0:01:56]}  Bf7 {[%clk 0:00:05]} 53. Bxb7 {[%clk 0:01:56]}  Bd5 {[%clk 0:00:05]} 54. Bxc6 {[%clk 0:01:56]} 1-0


[Site "https://www.chess.com"]